bitfinex-derivatives/quotes_ETHF0:USTF0_20260115
["timestamp","ask_amount","ask_price","bid_price","bid_amount"]
[1768467584163,0.84141353,3339.0,3338.2,0.16757758]
[1768467584357,0.00449566,3339.0,3338.2,0.16757758]
[1768467588953,0.00449566,3339.0,3337.5,0.14984]
[1768467589161,0.00449566,3339.0,3337.6,0.16757758]
[1768467598970,0.83501968,3338.9,3337.6,0.16757758]
[1768467599161,0.00449566,3339.0,3337.6,0.16757758]
[1768467599468,0.83507175,3338.9,3337.6,0.16757758]
[1768467599766,0.00449566,3339.0,3337.6,0.16757758]
[1768467600067,0.83507197,3338.9,3337.6,0.16757758]
[1768467600271,0.00449566,3339.0,3337.6,0.16757758]
[1768467600460,0.83508678,3338.9,3337.6,0.16757758]
[1768467600661,0.00449566,3339.0,3337.6,0.16757758]
[1768467600862,0.83511999,3338.9,3337.6,0.16757758]
[1768467601062,0.00449566,3339.0,3337.6,0.16757758]
[1768467601374,0.83516744,3338.9,3337.6,0.16757758]
[1768467601570,0.00449566,3339.0,3337.6,0.16757758]
[1768467601870,0.83519922,3338.9,3337.6,0.16757758]
[1768467602070,1.19728949,3338.3,3337.3,0.00449566]
[1768467603366,1.19798254,3338.1,3337.3,0.00449566]
[1768467603865,1.19798254,3337.8,3337.0,0.00338213]
[1768467604773,1.19798254,3337.5,3336.8,0.1666118]
[1768467605371,1.19798254,3337.5,3336.4,0.1666118]
[1768467605572,0.1498,3338.3,3336.4,0.1666118]
[1768467605772,1.19798254,3337.6,3336.4,0.1692665]
[1768467605974,0.00449566,3337.3,3336.4,0.1692665]
[1768467606271,0.00449566,3337.3,3336.6,0.1666118]
[1768467611275,40.8,3338.6,3337.3,0.1666118]
[1768467611474,2.458,3338.6,3337.3,0.1666118]
[1768467611778,1.19798254,3338.8,3337.3,0.1666118]
[1768467611975,0.83304169,3338.7,3337.3,0.1666118]
[1768467612185,41.99798254,3338.8,3337.3,0.1666118]
[1768467612384,0.83296044,3338.7,3337.3,0.1666118]
[1768467612572,0.00449566,3338.3,3337.6,0.1666118]
[1768467618174,1.19798254,3338.1,3337.6,0.1666118]
[1768467620382,1.19798254,3338.1,3337.2,0.1666118]
[1768467620691,1.19798254,3337.8,3337.2,0.1666118]
[1768467621292,1.19798254,3338.2,3337.2,0.1666118]
[1768467623490,1.19798254,3337.9,3337.2,0.1666118]
[1768467625585,1.19798254,3337.9,3336.6,0.15613935]
[1768467626598,1.19798254,3337.7,3336.6,0.15613935]
[1768467637508,1.19798254,3337.4,3336.6,0.15613935]
[1768467639906,1.19798254,3337.4,3336.5,0.00449566]
[1768467641604,1.19798254,3337.7,3336.5,0.00449566]
[1768467641807,1.19798254,3337.7,3336.5,0.16063501]
[1768467642304,1.19798254,3338.0,3336.5,0.16063501]
[1768467642607,1.19798254,3337.5,3336.5,0.16063501]
[1768467644906,1.19798254,3337.5,3336.5,0.00449566]
[1768467645111,1.29583609,3338.0,3336.5,0.00449566]
[1768467645112,1.19798254,3337.3,3336.5,0.00449566]
[1768467645313,1.19798254,3337.1,3336.5,0.00449566]
[1768467645502,1.19798254,3336.6,3335.7,0.15613935]
[1768467645708,1.19798254,3336.8,3335.7,0.15613935]
[1768467646609,0.00449566,3336.6,3335.7,0.15910091]
[1768467647614,1.2024782,3336.6,3335.7,0.15910091]
[1768467647815,1.2024782,3336.6,3335.8,0.00449566]
[1768467647999,1.19798254,3336.3,3335.8,0.00449566]
[1768467648205,0.00449566,3336.6,3335.8,0.00449566]
[1768467648406,1.19798254,3336.3,3335.8,0.00449566]
[1768467649102,1.19798254,3336.3,3334.9,0.15613935]
[1768467649300,0.00449566,3336.6,3335.6,0.15613935]
[1768467650107,0.00449566,3336.6,3335.6,0.15926655]
[1768467657520,0.00449566,3336.6,3335.8,0.14275984]
[1768467659622,0.00245919,3336.8,3336.1,0.14275984]
[1768467660723,0.00695485,3336.8,3336.1,0.14275984]
[1768467661921,0.00695485,3336.8,3336.1,0.1472555]
[1768467663030,1.19798254,3337.3,3336.1,0.1472555]
[1768467663415,2.457,3337.5,3336.1,0.1472555]
[1768467663620,0.83519205,3337.4,3336.1,0.1472555]
[1768467663821,0.83519205,3337.3,3336.1,0.1472555]
[1768467664022,0.00271535,3337.3,3336.1,0.1472555]
[1768467664521,0.00449566,3337.0,3336.1,0.1472555]
[1768467669729,0.00271535,3337.3,3336.2,1.19849732]
[1768467669921,1.779,3337.9,3336.3,0.14275984]
[1768467670123,0.83587944,3337.8,3336.3,0.14275984]
[1768467670319,0.83587538,3337.7,3336.3,0.14275984]
[1768467670520,1.779,3337.9,3336.3,0.14275984]
[1768467670817,0.83587538,3337.8,3336.3,0.14275984]
[1768467671024,1.78237501,3337.9,3336.3,0.14275984]
[1768467671025,0.00449566,3337.4,3336.3,0.14275984]
[1768467676322,1.78237501,3337.9,3336.5,0.14275984]
[1768467677534,0.00449566,3337.5,3336.5,0.14275984]
[1768467710652,0.83737028,3337.4,3336.5,0.14275984]
[1768467710960,0.83740355,3337.3,3336.1,0.15552261]
[1768467711262,0.83740355,3337.2,3336.1,0.15552261]
[1768467711559,0.83740355,3337.1,3336.1,0.15552261]
[1768467711856,0.00449566,3337.5,3336.1,0.15552261]
[1768467712056,0.83712342,3337.4,3336.1,0.15552261]
[1768467712248,0.83712342,3337.3,3336.1,0.15552261]
[1768467712453,0.83712342,3337.2,3336.1,0.15552261]
[1768467712658,0.83712342,3337.1,3336.1,0.15552261]
[1768467712852,0.00449566,3337.5,3336.1,0.15552261]
[1768467713151,0.83685646,3337.4,3336.1,0.15552261]
[1768467713346,0.83685646,3337.3,3336.1,0.15552261]
[1768467713550,0.83685646,3337.2,3336.1,0.15552261]
[1768467713759,0.83685646,3337.1,3336.1,0.15552261]
[1768467713953,0.00449566,3337.5,3336.1,0.15552261]
[1768467714157,0.83662718,3337.4,3336.1,0.15552261]
[1768467714355,0.83662718,3337.3,3336.1,0.15552261]
[1768467714555,2.0351245,3337.2,3336.1,0.15552261]
[1768467714762,1.19849732,3337.2,3336.1,0.15552261]
[1768467715263,1.19849732,3336.7,3335.7,0.15102695]
[1768467715560,1.19849732,3336.7,3335.0,3.78890161]
[1768467715751,1.19849732,3336.7,3334.9,2.69205586]
[1768467716253,1.19849732,3336.7,3335.8,0.00449566]
[1768467717160,1.19849732,3336.7,3333.7,7.03011801]
[1768467717161,1.19849732,3336.3,3334.2,2.69205586]
[1768467717368,1.19849732,3335.9,3334.3,0.15102695]
[1768467718259,0.14294568,3336.2,3334.8,0.00449566]
[1768467718454,0.83467709,3336.1,3334.8,0.00449566]
[1768467718655,0.14294568,3336.2,3334.8,0.00449566]
[1768467718850,0.83464527,3336.1,3334.8,0.00449566]
[1768467719065,0.14294568,3336.2,3334.8,0.00449566]
[1768467720864,0.14294568,3337.0,3335.0,0.15102695]
[1768467721055,0.83345484,3336.9,3335.0,0.15102695]
[1768467721254,0.14294568,3337.0,3335.0,0.15102695]
[1768467721255,0.83345484,3336.8,3335.0,0.15102695]
[1768467721462,0.00449566,3336.3,3335.0,0.15102695]
[1768467721969,0.00449566,3336.3,3334.8,0.00449566]
[1768467722966,0.00449566,3336.3,3334.8,0.15552261]
[1768467725369,1.19933094,3336.1,3334.8,0.15552261]
[1768467727666,1.19933094,3335.9,3334.8,0.15552261]
[1768467728768,1.19933094,3335.7,3334.8,0.00449566]
[1768467729867,1.19933094,3335.9,3334.8,0.00449566]
[1768467735874,1.19933094,3336.1,3334.8,0.00449566]
[1768467739469,0.14744134,3336.3,3334.9,0.15102695]
[1768467739470,1.2038266,3336.3,3334.9,0.15102695]
[1768467741276,0.83580856,3336.2,3334.9,0.15102695]
[1768467741474,1.19933094,3336.1,3334.9,0.15102695]
[1768467748480,1.19933094,3336.1,3334.8,0.00449566]
[1768467748675,1.33703835,3336.1,3334.8,0.00449566]
[1768467749780,1.19933094,3335.8,3334.8,0.00449566]
[1768467755490,1.19933094,3336.0,3334.8,0.00449566]
[1768467756982,1.19933094,3335.8,3334.8,0.00449566]
[1768467758985,1.19933094,3335.9,3334.8,0.00449566]
[1768467759689,0.00449566,3336.3,3334.8,0.00449566]
[1768467759881,1.19933094,3336.1,3334.8,0.00449566]
[1768467760081,0.83829923,3336.0,3334.8,0.00449566]
[1768467760282,1.19933094,3336.1,3334.8,0.00449566]
[1768467760489,0.00449566,3336.3,3335.3,1.19933094]
[1768467760684,0.83824759,3336.2,3335.1,1.19933094]
[1768467760883,0.00449566,3336.3,3335.1,1.19933094]
[1768467761083,0.83824779,3336.2,3335.4,1.19933094]
[1768467761282,0.00449566,3336.3,3335.2,1.19933094]
[1768467761887,0.00449566,3336.3,3335.6,1.19933094]
[1768467762095,0.00449566,3336.3,3335.2,0.13579907]
[1768467762291,0.00449566,3336.3,3335.4,1.19933094]
[1768467762891,0.00449566,3336.3,3335.2,1.33513001]
[1768467763091,0.00449566,3336.3,3335.2,0.13579907]
[1768467763878,1.19933094,3336.2,3335.2,0.13579907]
[1768467764079,0.00449566,3336.3,3335.2,0.13579907]
[1768467764278,1.2038266,3336.3,3335.2,0.13579907]
[1768467765388,1.2038266,3336.3,3335.0,1.34928094]
[1768467766093,1.2038266,3336.3,3335.0,1.48508001]
[1768467766293,1.2038266,3336.3,3335.1,0.13579907]
[1768467766491,0.00449566,3336.3,3335.1,0.13579907]
[1768467766690,0.00449566,3336.3,3335.2,1.19933094]
[1768467769597,0.00449566,3336.3,3335.1,1.33513001]
[1768467772210,0.00449566,3336.3,3335.1,0.13579907]
[1768467772409,1.2038266,3336.3,3335.1,0.13579907]
[1768467777410,1.34191237,3336.3,3335.0,0.14995]
[1768467779110,1.19933094,3335.8,3334.8,0.00449566]
[1768467779698,1.19933094,3335.6,3334.8,0.00449566]
[1768467780102,1.19933094,3335.8,3334.8,0.00449566]
[1768467780902,1.33741671,3336.2,3334.9,1.19933094]
[1768467781104,0.83615631,3336.1,3334.8,0.00449566]
[1768467781305,1.33741671,3336.2,3334.8,0.00449566]
[1768467781608,0.83615768,3336.1,3334.8,0.00449566]
[1768467781808,1.33741671,3336.2,3334.8,0.00449566]
[1768467782009,1.19933094,3336.0,3334.8,0.00449566]
[1768467782908,0.13808577,3336.2,3334.9,1.19933094]
[1768467783221,0.00449566,3336.3,3334.9,0.14382214]
[1768467783417,1.19933094,3336.2,3334.9,0.14382214]
[1768467783615,1.19933094,3336.0,3334.8,0.00449566]
[1768467787323,0.14258143,3336.3,3334.8,0.00449566]
[1768467788423,0.13808577,3336.0,3334.8,0.00449566]
[1768467797129,0.13808577,3335.8,3334.8,0.00449566]
[1768467801334,40.93679333,3336.3,3334.8,0.00449566]
[1768467801534,0.83624696,3336.2,3334.8,0.00449566]
[1768467801727,0.83624696,3336.1,3334.8,0.00449566]
[1768467801928,0.13229767,3336.2,3334.8,0.00449566]
[1768467802128,0.83623806,3336.1,3334.8,0.00449566]
[1768467802430,0.13229767,3336.2,3334.8,0.00449566]
[1768467802732,0.83629769,3336.1,3334.8,0.00449566]
[1768467802926,0.13229767,3336.2,3334.8,0.00449566]
[1768467803220,0.98316608,3336.1,3334.8,0.00449566]
[1768467803424,0.14686853,3336.1,3334.8,0.00449566]
[1768467804438,0.98332393,3336.0,3334.8,0.00449566]
[1768467804635,0.14686853,3336.0,3334.8,0.00449566]
[1768467808932,0.00449566,3336.3,3334.8,0.00449566]
[1768467809133,0.83712225,3336.2,3334.8,0.00449566]
[1768467809329,0.83712225,3336.1,3334.8,0.00449566]
[1768467809628,0.83712225,3336.0,3334.8,0.00449566]
[1768467809831,0.14686853,3336.2,3334.8,0.00449566]
[1768467810137,0.83715689,3336.1,3334.8,0.00449566]
[1768467810437,0.83715689,3336.0,3334.8,0.00449566]
[1768467810640,0.14686853,3336.2,3334.8,0.00449566]
[1768467810834,0.83716823,3336.1,3334.8,0.00449566]
[1768467811136,0.83716823,3336.0,3334.8,0.00449566]
[1768467811336,0.14686853,3336.2,3334.8,0.00449566]
[1768467811538,0.83717745,3336.1,3334.8,0.00449566]
[1768467811737,0.83717745,3336.0,3334.8,0.00449566]
[1768467811940,0.14686853,3336.2,3334.8,0.00449566]
[1768467812139,0.83717703,3336.1,3334.8,0.00449566]
[1768467812334,0.83717703,3336.0,3334.8,0.00449566]
[1768467812636,0.14686853,3336.2,3334.8,0.00449566]
[1768467812836,0.83718835,3336.1,3334.8,0.00449566]
[1768467813034,0.83718835,3336.0,3334.8,0.00449566]
[1768467813235,0.14686853,3336.2,3334.8,0.00449566]
[1768467813438,0.83722203,3336.1,3334.8,0.00449566]
[1768467813641,0.83722203,3336.0,3334.8,0.00449566]
[1768467813842,0.14686853,3336.2,3334.8,0.00449566]
[1768467814134,0.83722203,3336.1,3334.8,0.00449566]
[1768467814334,0.83722203,3336.0,3334.8,0.00449566]
[1768467814535,0.83722203,3335.9,3334.8,0.00449566]
[1768467814736,0.14686853,3336.2,3334.8,0.00449566]
[1768467814939,0.83726066,3336.1,3334.8,0.00449566]
[1768467815139,0.83726066,3336.0,3334.8,0.00449566]
[1768467815338,0.83726066,3335.9,3334.8,0.00449566]
[1768467815539,0.14686853,3336.2,3334.8,0.00449566]
[1768467815840,0.83730345,3336.1,3334.8,0.00449566]
[1768467816038,0.83730345,3336.0,3334.8,0.00449566]
[1768467816240,0.83730345,3335.9,3334.8,0.00449566]
[1768467816440,0.14686853,3336.2,3334.8,0.00449566]
[1768467816636,0.14686853,3336.0,3334.8,0.00449566]
[1768467816842,0.14686853,3335.8,3334.8,0.00449566]
[1768467821750,0.14686853,3336.2,3334.8,0.00449566]
[1768467822043,0.83753444,3336.1,3335.0,1.34517523]
[1768467822248,0.00449566,3336.3,3335.0,1.34517523]
[1768467822547,0.00449566,3336.3,3335.0,0.1458346]
[1768467840761,0.00449566,3336.3,3335.2,0.14440867]
[1768467842567,0.00449566,3336.3,3335.3,0.14440867]
[1768467845163,0.9054559,3337.6,3335.9,0.14440867]
[1768467845465,0.83585182,3337.5,3335.9,0.14440867]
[1768467845662,0.83585182,3337.4,3335.9,0.14440867]
[1768467845863,0.9054559,3337.6,3335.9,0.14440867]
[1768467846066,0.83557699,3337.5,3335.9,0.14440867]
[1768467846265,0.00449566,3337.1,3335.9,0.14440867]
[1768467848452,0.1426628,3337.9,3335.9,0.14440867]
[1768467848653,0.13928779,3337.7,3336.0,0.1499]
[1768467848864,0.13928779,3337.6,3336.0,0.1499]
[1768467849466,1.19838176,3337.4,3336.0,0.1499]
[1768467849659,0.00449566,3337.1,3336.5,0.00449566]
[1768467871883,1.19838176,3336.7,3335.9,0.14440867]
[1768467872083,1.19838176,3336.4,3335.5,2.83568166]
[1768467872285,1.19838176,3336.4,3335.5,0.1436258]
[1768467872484,1.19838176,3336.6,3335.5,0.1436258]
[1768467873086,1.19838176,3336.6,3335.7,0.00449566]
[1768467874283,1.19838176,3336.8,3335.7,0.00449566]
[1768467878087,1.19838176,3336.6,3335.7,0.00449566]
[1768467879292,1.19838176,3336.7,3335.7,0.00449566]
[1768467879885,1.19838176,3336.5,3335.7,0.00449566]
[1768467880081,1.19838176,3335.9,3335.1,2.69205586]
[1768467880285,1.34824176,3337.0,3334.7,0.1436258]
[1768467880286,1.19838176,3335.6,3334.7,0.1436258]
[1768467880586,1.19838176,3335.8,3334.7,0.1436258]
[1768467880997,0.13891861,3336.7,3335.1,1.19838176]
[1768467881191,1.19838176,3336.5,3335.1,1.19838176]
[1768467882193,1.19838176,3336.3,3334.9,1.34650322]
[1768467882991,1.19838176,3336.1,3334.9,0.14812146]
[1768467883691,1.19838176,3336.1,3334.9,0.00449566]
[1768467886895,1.19838176,3335.8,3334.9,0.00449566]
[1768467889595,1.19838176,3335.4,3334.9,0.00449566]
[1768467889900,0.00311877,3335.4,3334.4,0.1436258]
[1768467891098,0.00449566,3335.2,3334.4,0.1436258]
[1768467892296,0.00449566,3335.2,3334.3,0.00232185]
[1768467896703,1.19838176,3335.1,3334.3,0.00232185]
[1768467896899,0.00449566,3335.2,3334.3,0.00232185]
[1768467901004,1.19838176,3335.0,3334.3,1e-08]
[1768467903896,1.20287742,3335.2,3334.3,1e-08]
[1768467904807,0.00449566,3335.2,3334.3,1e-08]
[1768467906310,0.13106413,3335.0,3333.1,0.15003]
[1768467906507,0.00449566,3335.2,3334.0,1.19838176]
[1768467907411,0.00449566,3335.2,3334.0,1.20098728]
[1768467907614,0.00449566,3335.2,3334.3,0.00449566]
[1768467907808,0.00449566,3335.2,3334.4,1.19838176]
[1768467908401,0.00449566,3335.2,3334.3,0.00449566]
[1768467908805,1.19838176,3335.1,3334.3,0.00449566]
[1768467909615,1.19838176,3334.9,3334.3,0.00449566]
[1768467910618,0.13555979,3335.2,3334.3,0.00449566]
[1768467910814,0.00449566,3335.2,3334.3,0.00449566]
[1768467922117,0.00449566,3335.2,3334.3,0.137462]
[1768467922318,0.00311877,3335.4,3334.3,0.137462]
[1768467922513,0.140902,3336.4,3334.6,0.13296634]
[1768467922714,0.83685182,3336.3,3334.6,0.13296634]
[1768467922914,2.461,3336.5,3334.7,0.13296634]
[1768467923515,2.46413743,3336.5,3334.7,0.13296634]
[1768467924123,0.00313743,3336.5,3334.7,0.13296634]
[1768467930127,0.00449566,3335.9,3334.7,0.28292634]
[1768467930326,0.00313743,3336.5,3334.8,0.13880063]
[1768467932244,0.14542433,3336.5,3334.8,0.13880063]
[1768467932439,1.34222695,3336.2,3334.7,0.14996]
[1768467933538,0.00313743,3336.5,3334.8,0.13880063]
[1768467937650,0.14542433,3336.5,3334.8,0.13880063]
[1768467938052,1.19994005,3336.4,3334.8,0.13880063]
[1768467938440,1.34222695,3336.4,3334.8,0.13880063]
[1768467943552,0.1422869,3336.3,3334.8,0.13880063]
[1768467946859,1.19994005,3335.6,3334.4,0.13880063]
[1768467947049,0.1422869,3335.5,3334.3,0.00449566]
[1768467947741,0.1422869,3335.9,3334.3,0.00449566]
[1768467947945,0.83513977,3335.8,3334.3,0.00449566]
[1768467948158,0.1422869,3335.9,3334.3,0.14329629]
[1768467948545,2.5742869,3336.3,3334.3,0.14329629]
[1768467948849,0.83526388,3336.2,3334.3,0.14329629]
[1768467949056,2.5742869,3336.3,3334.3,0.14329629]
[1768467949252,0.83552131,3336.2,3334.3,0.14329629]
[1768467949452,2.5742869,3336.3,3334.3,0.14329629]
[1768467949655,0.97780774,3336.2,3334.3,0.14329629]
[1768467949848,0.1422869,3336.2,3334.3,0.14329629]
[1768467950246,0.83583316,3336.1,3334.3,0.14329629]
[1768467950442,0.1422869,3336.2,3334.3,0.14329629]
[1768467950655,0.00449566,3335.6,3334.3,0.14329629]
[1768467951055,0.00449566,3335.6,3334.5,0.14210087]
[1768467953057,0.00313743,3336.5,3334.5,0.14210087]
[1768467953260,0.83653521,3336.4,3334.5,0.14210087]
[1768467953559,0.83653521,3336.3,3334.5,0.14210087]
[1768467953750,0.00313743,3336.5,3334.5,0.14210087]
[1768467953751,0.00313743,3336.5,3334.6,0.14210087]
[1768467953953,0.83653254,3336.4,3334.6,0.14210087]
[1768467954142,0.83653254,3336.3,3334.6,0.14210087]
[1768467954347,0.00313743,3336.5,3334.6,0.14210087]
[1768467954548,0.83653504,3336.4,3334.6,0.14210087]
[1768467954844,0.83653504,3336.3,3334.6,0.14210087]
[1768467955043,0.00313743,3336.5,3334.6,0.14210087]
[1768467955248,0.83654646,3336.4,3334.6,0.14210087]
[1768467955448,0.83654646,3336.3,3334.6,0.14210087]
[1768467955655,0.00313743,3336.5,3334.6,0.14210087]
[1768467955863,0.8365466,3336.4,3334.6,0.14210087]
[1768467956049,0.00313743,3336.5,3334.6,0.14210087]
[1768467956050,0.8365466,3336.3,3334.6,0.14210087]
[1768467956350,0.00313743,3336.5,3334.6,0.14210087]
[1768467956645,0.83656046,3336.4,3334.6,0.14210087]
[1768467956850,0.83656046,3336.3,3334.6,0.14210087]
[1768467957149,0.00313743,3336.5,3334.6,0.14210087]
[1768467957446,0.83657641,3336.4,3334.6,0.14210087]
[1768467957650,0.83657641,3336.3,3334.6,0.14210087]
[1768467957849,0.00313743,3336.5,3334.6,0.14210087]
[1768467958150,0.83657655,3336.4,3334.6,0.14210087]
[1768467958458,0.83657655,3336.3,3334.6,0.14210087]
[1768467958653,0.00313743,3336.5,3334.6,0.14210087]
[1768467958952,0.83659915,3336.4,3334.6,0.14210087]
[1768467959152,0.83659915,3336.3,3334.6,0.14210087]
[1768467959352,0.00313743,3336.5,3334.6,0.14210087]
[1768467959552,0.83662441,3336.4,3334.6,0.14210087]
[1768467959762,0.83662441,3336.3,3334.6,0.14210087]
[1768467959963,0.00313743,3336.5,3334.6,0.14210087]
[1768467960163,0.83662441,3336.4,3334.6,0.14210087]
[1768467960363,0.83662441,3336.3,3334.6,0.14210087]
[1768467960564,0.00313743,3336.5,3334.6,0.14210087]
[1768467960762,0.83666265,3336.4,3334.6,0.14210087]
[1768467961061,0.83666265,3336.3,3334.6,0.14210087]
[1768467961261,0.00313743,3336.5,3334.6,0.14210087]
[1768467961463,0.8367262,3336.4,3334.6,0.14210087]
[1768467961762,0.8367262,3336.3,3334.6,0.14210087]
[1768467961953,0.00313743,3336.5,3334.6,0.14210087]
[1768467962154,0.83672606,3336.4,3334.6,0.14210087]
[1768467962363,0.83672606,3336.3,3334.6,0.14210087]
[1768467962563,0.00313743,3336.5,3334.6,0.14210087]
[1768467962769,0.8367951,3336.4,3334.6,0.14210087]
[1768467962964,0.8367951,3336.3,3334.7,0.14210087]
[1768467963261,0.00313743,3336.5,3334.7,0.14210087]
[1768467963463,0.83676862,3336.4,3334.7,0.14210087]
[1768467963662,0.00313743,3336.5,3334.7,0.14210087]
[1768467963866,0.83676862,3336.4,3334.7,0.14210087]
[1768467964055,0.00313743,3336.5,3334.7,0.14210087]
[1768467964251,0.83675211,3336.4,3334.7,0.14210087]
[1768467964455,0.00313743,3336.5,3334.7,0.14210087]
[1768467964660,0.83677553,3336.4,3334.7,0.14210087]
[1768467964860,0.00313743,3336.5,3334.7,0.14210087]
[1768467965151,0.83677553,3336.4,3334.7,0.14210087]
[1768467965359,0.00313743,3336.5,3334.7,0.14210087]
[1768467965656,0.83681602,3336.4,3334.7,0.14210087]
[1768467965857,0.00313743,3336.5,3334.7,0.14210087]
[1768467966057,0.83681614,3336.4,3334.7,0.14210087]
[1768467966265,0.83681614,3336.3,3334.7,0.14210087]
[1768467966465,0.00313743,3336.5,3334.7,0.14210087]
[1768467966661,0.83686023,3336.4,3334.7,0.14210087]
[1768467966861,0.83686023,3336.3,3334.7,0.14210087]
[1768467967062,0.00313743,3336.5,3334.7,0.14210087]
[1768467967259,0.83688857,3336.4,3334.7,0.14210087]
[1768467967458,0.83688857,3336.3,3334.7,0.14210087]
[1768467967660,0.13469138,3336.5,3334.7,0.14210087]
[1768467967865,0.96846202,3336.4,3334.7,0.14210087]
[1768467968065,0.83690807,3336.3,3334.7,0.14210087]
[1768467968870,0.83690807,3336.3,3334.6,0.14997]
[1768467968871,0.13155395,3336.0,3334.6,0.14997]
[1768467970070,0.13155395,3336.0,3334.3,4.01465239]
[1768467970259,0.9686221,3335.9,3334.3,1.32259653]
[1768467970462,0.13155395,3335.9,3334.3,1.32259653]
[1768467971274,0.13155395,3335.6,3334.3,1.18049566]
[1768467971570,1.20003203,3335.1,3334.3,0.00449566]
[1768467972761,1.20003203,3335.4,3334.3,0.00449566]
[1768467976870,0.13155395,3336.0,3334.3,0.00449566]
[1768467977071,1.20003203,3335.8,3334.4,1.20003203]
[1768467977470,1.20003203,3335.6,3334.3,0.00449566]
[1768467978969,1.20003203,3335.2,3334.3,0.00449566]
[1768467979172,1.20003203,3335.6,3334.3,0.00449566]
[1768467980575,0.13155395,3335.7,3334.4,1.20003203]
[1768467980772,1.20003203,3335.8,3334.4,1.20003203]
[1768467981178,1.20003203,3335.8,3334.3,1.34891986]
[1768467982874,1.20003203,3335.6,3334.3,0.14888783]
[1768467983074,1.20003203,3335.4,3334.3,0.00449566]
[1768467985783,0.13912957,3335.6,3334.3,0.00449566]
[1768467985984,1.20003203,3335.4,3334.3,0.00449566]
[1768467990786,1.20003203,3335.2,3334.3,0.00449566]
[1768467992279,1.3391616,3335.4,3334.3,0.00449566]
[1768467993086,0.13912957,3335.4,3334.3,0.00449566]
[1768467995388,1.20003203,3335.5,3334.3,0.00449566]
[1768467999793,1.3391616,3335.5,3334.3,0.00449566]
[1768468000097,1.20003203,3335.2,3334.3,0.00449566]
[1768468001994,1.20003203,3335.4,3334.3,0.00449566]
[1768468013697,0.13912957,3335.6,3334.3,0.00449566]
[1768468013905,0.13912957,3335.6,3334.3,1.20452769]
[1768468015495,0.14038595,3336.4,3334.9,1.20003203]
[1768468015796,1.20003203,3336.1,3334.7,1.20003203]
[1768468015993,1.20003203,3336.2,3334.9,1.20003203]
[1768468016194,1.20003203,3336.2,3334.5,0.13103331]
[1768468016195,0.83791259,3336.1,3334.7,1.20003203]
[1768468016492,1.20003203,3336.0,3334.7,1.20003203]
[1768468021697,1.20003203,3335.4,3334.3,2.84653152]
[1768468021892,1.20003203,3335.1,3334.3,0.00449566]
[1768468022603,1.20003203,3335.3,3334.3,0.00449566]
[1768468023706,1.34041798,3335.3,3334.3,0.00449566]
[1768468024512,1.20003203,3335.5,3334.3,0.00449566]
[1768468025504,0.14038595,3335.4,3334.3,0.00449566]
[1768468025907,1.20003203,3335.2,3334.3,0.00449566]
[1768468033305,0.14038595,3335.4,3334.3,0.00449566]
[1768468037602,0.14038595,3336.0,3334.3,0.00449566]
[1768468037802,0.97738835,3335.9,3334.3,0.00449566]
[1768468037997,0.14038595,3335.9,3334.3,0.13552897]
[1768468051317,0.14038595,3335.9,3334.4,0.13083539]
[1768468051510,0.14273635,3336.3,3334.4,0.13083539]
[1768468051710,0.98010694,3336.2,3334.4,0.13083539]
[1768468051918,0.83737059,3336.1,3334.4,0.13083539]
[1768468052123,0.14273635,3336.2,3334.4,0.13083539]
[1768468052320,0.83737026,3336.1,3334.4,0.13083539]
[1768468052621,0.83737026,3336.0,3334.4,0.13083539]
[1768468052816,0.14273635,3336.2,3334.4,0.13083539]
[1768468053019,0.83731556,3336.1,3334.4,0.13083539]
[1768468053220,0.83731556,3336.0,3334.4,0.13083539]
[1768468053415,0.14273635,3336.2,3334.4,0.13083539]
[1768468053616,0.83726669,3336.1,3334.4,0.13083539]
[1768468053817,0.83726669,3336.0,3334.4,0.13083539]
[1768468054011,0.14273635,3336.2,3334.4,0.13083539]
[1768468054212,0.83726317,3336.1,3334.4,0.13083539]
[1768468054516,0.83726317,3336.0,3334.4,0.13083539]
[1768468054820,0.14273635,3336.2,3334.4,0.13083539]
[1768468055022,0.83720589,3336.1,3334.4,0.13083539]
[1768468055328,0.83720589,3336.0,3334.4,0.13083539]
[1768468055521,0.14273635,3336.2,3334.4,0.13083539]
[1768468055721,0.83715485,3336.1,3334.4,0.13083539]
[1768468056019,0.83715485,3336.0,3334.4,0.13083539]
[1768468056222,0.14273635,3336.2,3334.4,0.13083539]
[1768468056417,0.83712579,3336.1,3334.4,0.13083539]
[1768468056620,0.83712579,3336.0,3334.4,0.13083539]
[1768468056924,0.14273635,3336.2,3334.4,0.13083539]
[1768468057223,0.8371262,3336.1,3334.4,0.13083539]
[1768468057427,0.8371262,3336.0,3334.4,0.13083539]
[1768468057620,0.14273635,3336.2,3334.4,0.13083539]
[1768468057918,0.83711772,3336.1,3334.4,0.13083539]
[1768468058114,0.83711772,3336.0,3334.4,0.13083539]
[1768468062320,0.14273635,3336.1,3334.4,0.13083539]
[1768468063926,0.14273635,3336.1,3334.3,2.84653152]
[1768468065622,0.14273635,3336.1,3334.3,2.97736691]
[1768468066326,0.83752206,3336.0,3334.3,2.97736691]
[1768468066528,0.14273635,3336.1,3334.4,2.69205586]
[1768468066726,0.83752206,3336.0,3334.4,2.69205586]
[1768468066929,0.14273635,3336.1,3334.4,2.69205586]
[1768468067130,0.83752206,3336.0,3334.4,2.69205586]
[1768468067425,0.14273635,3336.1,3334.4,2.69205586]
[1768468067619,0.83785064,3336.0,3334.4,2.69205586]
[1768468067926,0.14273635,3336.1,3334.4,2.69205586]
[1768468068128,0.83785064,3336.0,3334.4,2.69205586]
[1768468068314,0.14273635,3336.1,3334.4,2.69205586]
[1768468068519,0.83790732,3336.0,3334.4,2.69205586]
[1768468068719,0.14273635,3336.1,3334.4,2.69205586]
[1768468068931,0.83790718,3336.0,3334.4,2.69205586]
[1768468069133,0.14273635,3336.1,3334.4,2.69205586]
[1768468069431,0.83790746,3336.0,3334.4,2.69205586]
[1768468069731,0.14273635,3336.1,3334.4,2.69205586]
[1768468069920,0.83793963,3336.0,3334.4,2.69205586]
[1768468070233,0.14273635,3336.1,3334.4,2.69205586]
[1768468070431,0.8379786,3336.0,3334.4,2.82289125]
[1768468070632,0.14273635,3336.1,3334.4,2.82289125]
[1768468070832,0.83797848,3336.0,3334.4,2.82289125]
[1768468071021,0.14273635,3336.1,3334.4,2.82289125]
[1768468071323,0.83797827,3336.0,3334.4,2.82289125]
[1768468071521,0.14273635,3336.1,3334.4,2.82289125]
[1768468071722,0.83802526,3336.0,3334.5,0.14381235]
[1768468071922,0.14273635,3336.1,3334.5,0.14381235]
[1768468072118,0.83802526,3336.0,3334.5,0.14381235]
[1768468072317,0.14273635,3336.1,3334.5,0.14381235]
[1768468072522,0.83808358,3336.0,3334.6,1.182]
[1768468072724,0.14273635,3336.1,3334.7,0.14381235]
[1768468072919,0.83808345,3336.0,3334.7,0.14381235]
[1768468073131,0.14273635,3336.1,3334.7,0.14381235]
[1768468073319,0.83808351,3336.0,3334.7,0.14381235]
[1768468073520,0.14273635,3336.1,3334.7,0.14381235]
[1768468073822,0.83815887,3336.0,3334.7,0.14381235]
[1768468074226,0.14273635,3336.1,3334.7,0.14381235]
[1768468074533,0.83826294,3336.0,3334.7,0.14381235]